[Event "Torneo Interdepartamental 2019"]
[Site "Montevideo"]
[Date "2019.08.24"]
[Round "1.5"]
[White "Vazquez, Facundo"]
[Black "Marrero, Javier"]
[Result "1-0"]
[ECO "E15"]
[WhiteElo "2111"]
[BlackElo "1835"]
[Annotator "ChessBase"]
[PlyCount "47"]
[EventDate "2019.08.23"]
[EventType "team-tourn"]
[EventCountry "URU"]
[SourceTitle "playchess.com"]
[Source "ChessBase"]
[SourceQuality "1"]
[TimeControl "5400+30"]

1. d4 {[%emt 0:00:00]} Nf6 {[%emt 0:29:15]} 2. c4 {[%emt 0:00:00]} e6 {[%emt 0:00:31]} 3. Nf3 {[%emt 0:00:20]} b6 {[%emt 0:00:35]} 4. g3 {[%emt 0:00:32]} Bb7 {[%emt 0:00:09]} 5. Bg2 {[%emt 0:00:19]} c5 {[%emt 0:01:09]} 6. d5 {[%emt 0:02:22]} exd5 {[%emt 0:00:16]} 7. Nh4 {[%emt 0:01:15]} g6 {[%emt 0:02:50]} 8. O-O {[%emt 0:01:46]} Bg7 {[%emt 0:00:06]} 9. Nc3 {[%emt 0:01:01]} O-O {[%emt 0:00:33]} 10. cxd5 {[%emt 0:00:43]} d6 {[%emt 0:00:59]} 11. Nf3 {[%emt 0:02:36]} Re8 {[%emt 0:00:46]} 12. Bf4 {[%emt 0:01:34]} Qd7 {[%emt 0:02:22]} 13. a4 {[%emt 0:04:28]} Nh5 {[%emt 0:01:00]} 14. Be3 {[%emt 0:03:35]} Na6 {[%emt 0:00:13]} 15. Nd2 {[%emt 0:03:13]} Nb4 {[%emt 0:02:35]} 16. Nc4 {[%emt 0:09:29]} f5 {[%emt 0:02:17]} 17. Qd2 {[%emt 0:03:57]} Ba6 {[%emt 0:06:16]} 18. Na3 {[%emt 0:06:01]} Nf6 {[%emt 0:00:54]} 19. Nab5 {[%emt 0:03:30]} Bxb5 {[%emt 0:00:26]} 20. axb5 {[%emt 0:00:09]} Ng4 {[%emt 0:00:31]} 21. Bf4 {[%emt 0:03:34]} Ne5 {[%emt 0:03:39]} 22. Bxe5 {[%emt 0:02:43]} Bxe5 {[%emt 0:01:26]} 23. Rfe1 {[%emt 0:00:56]} Bxc3 {[%emt 0:00:25]} 24. bxc3 {[%emt 0:00:43]} 1-0

[Event "Torneo Interdepartamental 2019"]
[Site "Montevideo"]
[Date "2019.08.23"]
[Round "1.6"]
[White "De Cuadro, Dionisio"]
[Black "Casas, Nicolas"]
[Result "*"]
[WhiteElo "1654"]
[BlackElo "1798"]
[Annotator "NA RC"]
[PlyCount "31"]
[EventDate "2019.08.23"]
[EventType "team-tourn"]
[EventCountry "URU"]
[SourceTitle "playchess.com"]
[Source "ChessBase"]
[SourceQuality "1"]
[TimeControl "5400+30"]

1. d4 {[%emt 0:00:20]} Nf6 {[%emt 0:00:00]} 2. c4 {[%emt 0:00:07]} c5 {[%emt 0:00:00]} 3. d5 {[%emt 0:00:11]} e6 {[%emt 0:00:00]} 4. Nc3 {[%emt 0:00:25]} exd5 {[%emt 0:00:00]} 5. cxd5 {[%emt 0:00:16]} d6 {[%emt 0:00:00]} 6. e4 {[%emt 0:00:31]} g6 {[%emt 0:00:07]} 7. Qc2 {[%emt 0:01:09]} Bg7 {[%emt 0:00:16]} 8. Nf3 {[%emt 0:01:11]} a6 {[%emt 0:00:12]} 9. a4 {[%emt 0:00:24]} Bg4 {[%emt 0:00:18]} 10. Be2 {[%emt 0:01:14]} Bxf3 {[%emt 0:00:09]} 11. Bxf3 {[%emt 0:00:25]} Nbd7 {[%emt 0:00:08]} 12. Bf4 {[%emt 0:05:00]} Qe7 {[%emt 0:00:33]} 13. O-O O-O 14. Rfe1 {[%emt 0:03:00]} Rfe8 {[%emt 0:01:23]} 15. Rab1 {[%emt 0:01:50]} Rac8 {[%emt 0:03:36]} 16. a5 {[%emt 0:11:13]} *

[Event "Torneo Interdepartamental 2019"]
[Site "Montevideo"]
[Date "2019.08.24"]
[Round "1.6"]
[White "Chargonia, Alfredo"]
[Black "Daneri, Martin"]
[Result "0-1"]
[ECO "A65"]
[WhiteElo "1572"]
[BlackElo "2050"]
[Annotator "NA"]
[PlyCount "51"]
[EventDate "2019.08.23"]
[EventType "team-tourn"]
[EventCountry "URU"]
[SourceTitle "playchess.com"]
[Source "ChessBase"]
[SourceQuality "1"]
[TimeControl "5400+30"]

1. d4 {[%emt 0:00:20]} Nf6 {[%emt 0:00:00]} 2. c4 {[%emt 0:00:07]} c5 {[%emt 0:00:00]} 3. d5 {[%emt 0:00:11]} e6 {[%emt 0:00:00]} 4. Nc3 {[%emt 0:00:25]} exd5 {[%emt 0:00:00]} 5. cxd5 {[%emt 0:00:16]} d6 {[%emt 0:00:00]} 6. e4 {[%emt 0:00:31]} g6 {[%emt 0:00:07]} 7. Qc2 {[%emt 0:01:09]} Bg7 {[%emt 0:00:16]} 8. Nf3 {[%emt 0:01:11]} a6 {[%emt 0:00:12]} 9. a4 {[%emt 0:00:24]} Bg4 {[%emt 0:00:18]} 10. Be2 {[%emt 0:01:14]} Bxf3 {[%emt 0:00:09]} 11. Bxf3 {[%emt 0:00:25]} Nbd7 {[%emt 0:00:08]} 12. Bf4 {[%emt 0:05:00]} Qe7 {[%emt 0:00:33]} 13. O-O O-O 14. Rfe1 {[%emt 0:03:00]} Rfe8 {[%emt 0:01:23]} 15. Rab1 {[%emt 0:01:50]} Rac8 {[%emt 0:03:36]} 16. a5 {[%emt 0:11:13]} h6 {[%emt 0:03:16]} 17. h3 {[%emt 0:03:40]} g5 {[%emt 0:01:10]} 18. Bg3 {[%emt 0:01:26]} Ne5 {[%emt 0:03:44]} 19. b3 {[%emt 0:07:29]} Nxf3+ {[%emt 0:01:30]} 20. gxf3 {[%emt 0:00:12]} Nh5 {[%emt 0:00:32]} 21. Bh2 {[%emt 0:12:27]} Qd7 {[%emt 0:09:34]} 22. Kg2 {[%emt 0:01:38]} Be5 {[%emt 0:01:17]} 23. Ne2 {[%emt 0:01:58]} Qd8 {[%emt 0:07:35]} 24. Rg1 {[%emt 0:05:18]} Qf6 {[%emt 0:04:23]} 25. Qd3 {[%emt 0:04:17]} Rc7 {[%emt 0:01:49]} 26. Kf1 {[%emt 0:02:15]} 0-1

[Event "Torneo Interdepartamental 2019"]
[Site "Montevideo"]
[Date "2019.08.23"]
[Round "1.7"]
[White "Vazquez, Facundo"]
[Black "Marrero, Javier"]
[Result "*"]
[WhiteElo "2111"]
[BlackElo "1835"]
[Annotator "RC"]
[PlyCount "32"]
[EventDate "2019.08.23"]
[EventType "team-tourn"]
[EventCountry "URU"]
[SourceTitle "playchess.com"]
[Source "ChessBase"]
[SourceQuality "1"]
[TimeControl "5400+30"]

1. c4 {[%emt 0:00:00]} Nf6 {[%emt 0:00:00]} 2. g3 {[%emt 0:00:00]} e6 {[%emt 0:00:18]} 3. Bg2 {[%emt 0:00:03]} d5 {[%emt 0:00:30]} 4. cxd5 {[%emt 0:00:02]} exd5 {[%emt 0:00:10]} 5. Nf3 {[%emt 0:00:04]} c6 {[%emt 0:01:45]} 6. O-O {[%emt 0:00:03]} Bd6 {[%emt 0:01:18]} 7. d3 {[%emt 0:00:02]} O-O {[%emt 0:00:23]} 8. Nc3 {[%emt 0:00:02]} h6 {[%emt 0:01:33]} 9. e4 {[%emt 0:00:26]} dxe4 {[%emt 0:02:47]} 10. dxe4 {[%emt 0:00:02]} Bb4 {[%emt 0:03:27]} 11. Qc2 {[%emt 0:01:08]} Bxc3 {[%emt 0:03:18]} 12. bxc3 {[%emt 0:00:02]} Re8 {[%emt 0:01:39]} 13. Re1 {[%emt 0:00:02]} Na6 {[%emt 0:00:28]} 14. Bb2 {[%emt 0:00:58]} Nc5 {[%emt 0:07:38]} 15. Nd4 {[%emt 0:00:10]} Qb6 {[%emt 0:04:15]} 16. Rab1 {[%emt 0:00:26]} Qa6 {[%emt 0:00:07]} *

[Event "Torneo Interdepartamental 2019"]
[Site "Montevideo"]
[Date "2019.08.24"]
[Round "1.7"]
[White "Ibanez, Marcelo"]
[Black "Sierra, Juan Andres"]
[Result "1-0"]
[ECO "A15"]
[WhiteElo "2029"]
[BlackElo "1831"]
[Annotator "NA"]
[PlyCount "65"]
[EventDate "2019.08.23"]
[EventType "team-tourn"]
[EventCountry "URU"]
[SourceTitle "playchess.com"]
[Source "ChessBase"]
[SourceQuality "1"]
[TimeControl "5400+30"]

1. c4 {[%emt 0:00:00]} Nf6 {[%emt 0:00:00]} 2. g3 {[%emt 0:00:00]} e6 {[%emt 0:00:18]} 3. Bg2 {[%emt 0:00:03]} d5 {[%emt 0:00:30]} 4. cxd5 {[%emt 0:00:02]} exd5 {[%emt 0:00:10]} 5. Nf3 {[%emt 0:00:04]} c6 {[%emt 0:01:45]} 6. O-O {[%emt 0:00:03]} Bd6 {[%emt 0:01:18]} 7. d3 {[%emt 0:00:02]} O-O {[%emt 0:00:23]} 8. Nc3 {[%emt 0:00:02]} h6 {[%emt 0:01:33]} 9. e4 {[%emt 0:00:26]} dxe4 {[%emt 0:02:47]} 10. dxe4 {[%emt 0:00:02]} Bb4 {[%emt 0:03:27]} 11. Qc2 {[%emt 0:01:08]} Bxc3 {[%emt 0:03:18]} 12. bxc3 {[%emt 0:00:02]} Re8 {[%emt 0:01:39]} 13. Re1 {[%emt 0:00:02]} Na6 {[%emt 0:00:28]} 14. Bb2 {[%emt 0:00:58]} Nc5 {[%emt 0:07:38]} 15. Nd4 {[%emt 0:00:10]} Qb6 {[%emt 0:04:15]} 16. Rab1 {[%emt 0:00:26]} Qa6 {[%emt 0:00:07]} 17. c4 {[%emt 0:11:08]} Na4 {[%emt 0:14:19]} 18. Ba1 {[%emt 0:01:39]} Nb6 {[%emt 0:03:02]} 19. Bf1 {[%emt 0:00:07]} Qa4 {[%emt 0:08:51]} 20. Rb3 {[%emt 0:08:22]} Qa5 {[%emt 0:05:25]} 21. Bc3 {[%emt 0:20:24]} Qh5 {[%emt 0:01:09]} 22. e5 {[%emt 0:02:30]} Ng4 {[%emt 0:05:01]} 23. f4 {[%emt 0:00:59]} f6 {[%emt 0:15:08]} 24. h3 {[%emt 0:05:09]} fxe5 {[%emt 0:01:37]} 25. hxg4 {[%emt 0:00:03]} Qxg4 {[%emt 0:00:04]} 26. Qf2 {[%emt 0:00:34]} e4 {[%emt 0:04:46]} 27. Nf3 {[%emt 0:00:31]} e3 {[%emt 0:05:07]} 28. Qg2 {[%emt 0:01:00]} Nd7 {[%emt 0:04:58]} 29. Bd4 {[%emt 0:01:25]} c5 {[%emt 0:01:17]} 30. Rbxe3 {[%emt 0:00:13]} Rf8 {[%emt 0:01:34]} 31. Bc3 {[%emt 0:00:49]} b6 {[%emt 0:00:02]} 32. Nh2 {[%emt 0:00:21]} Qg6 {[%emt 0:01:49]} 33. Qxa8 {[%emt 0:00:38]} 1-0

[Event "Torneo Interdepartamental 2019"]
[Site "Montevideo"]
[Date "2019.08.23"]
[Round "1.8"]
[White "Visillac, Alejandro"]
[Black "Suarez, Pedro"]
[Result "0-1"]
[ECO "C00"]
[WhiteElo "1797"]
[BlackElo "2040"]
[Annotator "NA RC"]
[PlyCount "70"]
[EventDate "2019.08.23"]
[EventType "team-tourn"]
[EventCountry "URU"]
[SourceTitle "playchess.com"]
[Source "ChessBase"]
[SourceQuality "1"]
[TimeControl "5400+30"]

1. e4 {[%emt 0:00:00]} e6 {[%emt 0:00:00]} 2. d3 {[%emt 0:00:07]} d5 {[%emt 0:00:12]} 3. Nd2 {[%emt 0:00:08]} Nf6 {[%emt 0:00:11]} 4. Ngf3 {[%emt 0:00:19]} Bc5 {[%emt 0:02:12]} 5. e5 {[%emt 0:02:28]} Nfd7 {[%emt 0:00:34]} 6. d4 {[%emt 0:00:52]} Be7 {[%emt 0:00:12]} 7. g3 {[%emt 0:00:27] C03: French Tarrasch: Unusual Black 3rd moves} (7. c3 c5 8. Bd3 b6 9. O-O Ba6 10. Bxa6 Nxa6 11. Qe2 Nab8 12. c4 dxc4 13. Nxc4 O-O 14. Qe4 Na6 {½-½ (45) Movsesian,S (2629)-Caruana,F (2828) chess.com INT 2019}) 7... c5 {[%emt 0:00:53]} 8. c3 {[%emt 0:00:11]} Nc6 {[%emt 0:00:12]} 9. Bg2 {[%emt 0:00:17]} Qb6 {[%emt 0:01:07]} 10. Nb3 {[%emt 0:00:47]} cxd4 {[%emt 0:01:26]} 11. cxd4 {[%emt 0:01:13]} a5 {[%emt 0:03:26]} 12. Qd3 $146 {[%emt 0:19:27]} ({Predecessor:} 12. Be3 a4 13. Nbd2 Qa6 14. Bf1 Qb6 {1-0 (35) Martinez,J-Gurevich,A Verdun 1995}) 12... a4 {[%emt 0:01:56]} 13. Nbd2 {[%emt 0:03:24]} Nb4 {[%emt 0:00:19]} 14. Qc3 {[%emt 0:00:16]} Qa6 {[%emt 0:01:59]} 15. Bf1 {[%emt 0:00:44]} Qc6 {[%emt 0:00:08]} 16. Kd1 {[%emt 0:02:48]} Qb6 {[%emt 0:01:58]} 17. a3 {[%emt 0:02:33]} Nc6 {[%emt 0:01:34]} 18. b3 {[%emt 0:04:04]} axb3 {[%emt 0:01:34]} 19. Qxb3 {[%emt 0:00:45]} Qa7 {[%emt 0:02:19]} 20. Bb2 {[%emt 0:01:34]} f6 {[%emt 0:03:24]} 21. Bh3 {[%emt 0:03:21]} Kf7 {[%emt 0:08:51]} 22. Re1 {[%emt 0:04:26]} fxe5 {[%emt 0:00:55]} 23. Nxe5+ {[%emt 0:06:16]} Ncxe5 {[%emt 0:00:51]} 24. dxe5 {[%emt 0:01:54]} Qa4 {[%emt 0:00:28]} 25. Ke2 {[%emt 0:01:25]} Qxb3 {[%emt 0:01:54]} 26. Nxb3 {[%emt 0:00:09]} Nc5 {[%emt 0:00:12]} 27. Nd4 {[%emt 0:00:51]} Bd7 {[%emt 0:07:59]} 28. Rec1 {[%emt 0:04:44]} Rhc8 {[%emt 0:02:51]} 29. Rc3 {[%emt 0:02:00]} Ne4 {[%emt 0:02:01]} 30. Rf3+ {[%emt 0:03:01]} Kg8 {[%emt 0:00:05]} 31. Rb3 {[%emt 0:00:25]} Nc5 {[%emt 0:00:35]} 32. Rc3 {[%emt 0:00:17]} Ra4 {[%emt 0:04:00]} 33. Ke3 {[%emt 0:01:26]} Rca8 {[%emt 0:08:16]} 34. Rac1 {[%emt 0:02:02]} ({White should try} 34. Rcc1 $15) 34... Rxd4 {[%emt 0:00:45]} 35. Kxd4 {[%emt 0:00:48]} Ra4+ $19 {[%emt 0:00:04]} 0-1

[Event "Torneo Interdepartamental 2019"]
[Site "Montevideo"]
[Date "2019.08.24"]
[Round "1.9"]
[White "Lanzilotta, Marcelo"]
[Black "Pereira, Gerardo"]
[Result "1-0"]
[ECO "C41"]
[WhiteElo "1970"]
[BlackElo "1331"]
[Annotator "NA"]
[PlyCount "63"]
[EventDate "2019.08.23"]
[EventType "team-tourn"]
[EventCountry "URU"]
[SourceTitle "playchess.com"]
[Source "ChessBase"]
[SourceQuality "1"]
[TimeControl "5400+30"]

1. e4 {[%emt 0:00:05]} e5 {[%emt 0:00:00]} 2. Nf3 {[%emt 0:00:02]} d6 {[%emt 0:00:00]} 3. d4 {[%emt 0:00:07]} Nf6 {[%emt 0:00:37]} 4. Bc4 {[%emt 0:01:02]} h6 {[%emt 0:00:26]} 5. dxe5 {[%emt 0:00:20]} Nfd7 {[%emt 0:07:31]} 6. O-O {[%emt 0:06:11]} Nc6 {[%emt 0:04:11]} 7. e6 {[%emt 0:01:47]} Nde5 {[%emt 0:00:07]} 8. exf7+ {[%emt 0:01:38]} Nxf7 {[%emt 0:00:19]} 9. Bxf7+ {[%emt 0:02:30]} Kxf7 {[%emt 0:00:09]} 10. Qd5+ {[%emt 0:06:44]} Be6 {[%emt 0:00:33]} 11. Qh5+ Kg8 {[%emt 0:01:13]} 12. Nc3 {[%emt 0:00:10]} Qe8 {[%emt 0:04:16]} 13. Qb5 {[%emt 0:00:18]} b6 {[%emt 0:03:00]} 14. Nd5 {[%emt 0:02:54]} a6 {[%emt 0:00:59]} 15. Qc4 {[%emt 0:04:34]} b5 {[%emt 0:02:46]} 16. Ne7+ {[%emt 0:00:57]} Kf7 {[%emt 0:01:37]} 17. Qxc6 Bxe7 {[%emt 0:00:39]} 18. Qxc7 {[%emt 0:01:10]} Rc8 {[%emt 0:00:10]} 19. Qb7 {[%emt 0:03:06]} Qc6 {[%emt 0:00:19]} 20. Qxc6 {[%emt 0:00:43]} Rxc6 {[%emt 0:00:08]} 21. Nd4 {[%emt 0:02:27]} Rc4 {[%emt 0:00:31]} 22. c3 {[%emt 0:05:09]} Bd7 {[%emt 0:01:14]} 23. Be3 {[%emt 0:06:01]} b4 {[%emt 0:01:51]} 24. cxb4 {[%emt 0:00:44]} Rxb4 {[%emt 0:00:17]} 25. b3 {[%emt 0:03:02]} Bf6 {[%emt 0:00:10]} 26. Rad1 {[%emt 0:00:01]} Rc8 {[%emt 0:01:57]} 27. Rd2 {[%emt 0:01:04]} a5 {[%emt 0:02:58]} 28. f4 {[%emt 0:04:43]} a4 {[%emt 0:02:50]} 29. e5 {[%emt 0:00:22]} Be7 {[%emt 0:00:07]} 30. exd6 {[%emt 0:02:53]} Bxd6 {[%emt 0:00:47]} 31. Nc2 {[%emt 0:00:25]} Bc5 {[%emt 0:00:20]} 32. Bxc5 {[%emt 0:00:56]} 1-0

[Event "Torneo Interdepartamental 2019"]
[Site "Montevideo"]
[Date "2019.08.23"]
[Round "1.9"]
[White "Malan, Lucia"]
[Black "Blanco, Rudemar Ernesto"]
[Result "*"]
[ECO "B00"]
[WhiteElo "1831"]
[BlackElo "1516"]
[Annotator "NA RC"]
[PlyCount "23"]
[EventDate "2019.08.23"]
[EventType "team-tourn"]
[EventCountry "URU"]
[SourceTitle "playchess.com"]
[Source "ChessBase"]
[SourceQuality "1"]
[TimeControl "5400+30"]

1. e4 {[%emt 0:00:05]} e5 {[%emt 0:00:00]} 2. Nf3 {[%emt 0:00:02]} d6 {[%emt 0:00:00]} 3. d4 {[%emt 0:00:07]} Nf6 {[%emt 0:00:37]} 4. Bc4 {[%emt 0:01:02]} h6 {[%emt 0:00:26]} 5. dxe5 {[%emt 0:00:20]} Nfd7 {[%emt 0:07:31]} 6. O-O {[%emt 0:06:11]} Nc6 {[%emt 0:04:11]} 7. e6 {[%emt 0:01:47]} Nde5 {[%emt 0:00:07]} 8. exf7+ {[%emt 0:01:38]} Nxf7 {[%emt 0:00:19]} 9. Bxf7+ {[%emt 0:02:30]} Kxf7 {[%emt 0:00:09]} 10. Qd5+ {[%emt 0:06:44]} Be6 {[%emt 0:00:33]} 11. Qh5+ Kg8 {[%emt 0:01:13]} 12. Nc3 {[%emt 0:00:10]} *

[Event "Torneo Interdepartamental 2019"]
[Site "Montevideo"]
[Date "2019.08.24"]
[Round "1.10"]
[White "De Cuadro, Dionisio"]
[Black "Casas, Nicolas"]
[Result "0-1"]
[ECO "D43"]
[WhiteElo "1654"]
[BlackElo "1798"]
[Annotator "NA"]
[PlyCount "112"]
[EventDate "2019.08.23"]
[EventType "team-tourn"]
[EventCountry "URU"]
[SourceTitle "playchess.com"]
[Source "ChessBase"]
[SourceQuality "1"]
[TimeControl "5400+30"]

1. Nf3 {[%emt 0:00:00]} d5 {[%emt 0:00:00]} 2. d4 {[%emt 0:00:00]} Nf6 {[%emt 0:00:41]} 3. c4 {[%emt 0:00:11]} c6 {[%emt 0:00:48]} 4. Nc3 {[%emt 0:00:36]} e6 {[%emt 0:00:29]} 5. Bg5 {[%emt 0:00:42]} Be7 {[%emt 0:00:29]} 6. e3 {[%emt 0:00:10]} Nbd7 {[%emt 0:01:01]} 7. Bd3 {[%emt 0:00:16]} h6 {[%emt 0:00:36]} 8. Bh4 {[%emt 0:00:10]} O-O {[%emt 0:03:44]} 9. O-O {[%emt 0:00:27]} c5 {[%emt 0:08:07]} 10. Qe2 {[%emt 0:05:05]} cxd4 {[%emt 0:05:39]} 11. exd4 {[%emt 0:01:14]} dxc4 {[%emt 0:05:27]} 12. Bxc4 {[%emt 0:00:13]} Nb6 {[%emt 0:00:07]} 13. Bd3 {[%emt 0:01:20]} Nbd5 {[%emt 0:00:12]} 14. Nxd5 {[%emt 0:02:58]} Qxd5 {[%emt 0:03:36]} 15. Rfc1 {[%emt 0:02:57]} Qd8 {[%emt 0:11:55]} 16. Bxf6 {[%emt 0:10:54]} Bxf6 {[%emt 0:00:16]} 17. Qe4 {[%emt 0:00:19]} g6 {[%emt 0:00:45]} 18. Rc5 {[%emt 0:04:49]} Rb8 {[%emt 0:08:34]} 19. Rac1 {[%emt 0:00:33]} Bd7 {[%emt 0:00:51]} 20. Ne5 {[%emt 0:03:28]} Bc6 {[%emt 0:13:42]} 21. Qe3 {[%emt 0:06:06]} Bg5 {[%emt 0:03:55]} 22. f4 {[%emt 0:00:42]} Bf6 {[%emt 0:00:15]} 23. R1c2 {[%emt 0:08:42]} a6 {[%emt 0:06:14]} 24. b4 {[%emt 0:01:04]} Qd6 {[%emt 0:04:02]} 25. a3 {[%emt 0:03:58]} Ba4 {[%emt 0:03:59]} 26. Rd2 {[%emt 0:03:23]} Bc6 {[%emt 0:03:10]} 27. Bxa6 {[%emt 0:03:05]} Bxg2 {[%emt 0:01:17]} 28. Kxg2 {[%emt 0:01:54]} bxa6 {[%emt 0:00:26]} 29. Rdc2 {[%emt 0:03:21]} Rfd8 {[%emt 0:01:26]} 30. Rd2 {[%emt 0:00:32]} Rbc8 {[%emt 0:01:08]} 31. Kg3 {[%emt 0:06:30]} Kg7 {[%emt 0:03:49]} 32. Qe4 {[%emt 0:03:01]} Rxc5 {[%emt 0:02:01]} 33. bxc5 {[%emt 0:00:25]} Qc7 {[%emt 0:00:33]} 34. Rb2 {[%emt 0:00:38]} Qa5 {[%emt 0:01:24]} 35. Qe3 {[%emt 0:03:22]} Qc7 {[%emt 0:03:16]} 36. Rb6 {[%emt 0:01:24]} a5 {[%emt 0:01:29]} 37. Qe4 {[%emt 0:02:07]} Rd5 {[%emt 0:00:09]} 38. a4 {[%emt 0:02:08]} Qd8 {[%emt 0:00:56]} 39. Rb7 {[%emt 0:11:41]} Bxe5 {[%emt 0:00:18]} 40. dxe5 {[%emt 0:03:38]} Rxc5 {[%emt 0:01:09]} 41. Rb3 {[%emt 0:01:28]} Qd2 {[%emt 0:00:50]} 42. Rd3 {[%emt 0:01:55]} Qc1 {[%emt 0:00:49]} 43. Qf3 {[%emt 0:00:30]} Rc4 {[%emt 0:00:21]} 44. Ra3 {[%emt 0:00:35]} Qg1+ {[%emt 0:00:36]} 45. Kh3 {[%emt 0:00:25]} Qd4 {[%emt 0:00:22]} 46. Kg3 {[%emt 0:01:03]} Rxa4 {[%emt 0:00:11]} 47. Re3 {[%emt 0:00:10]} Ra1 {[%emt 0:00:31]} 48. Qf2 {[%emt 0:00:22]} Qd1 {[%emt 0:00:46]} 49. h3 {[%emt 0:01:15]} a4 {[%emt 0:00:53]} 50. Re2 {[%emt 0:00:19]} Qg1+ {[%emt 0:00:55]} 51. Qxg1 {[%emt 0:00:22]} Rxg1+ {[%emt 0:00:04]} 52. Kf2 {[%emt 0:00:12]} Ra1 {[%emt 0:00:06]} 53. Kf3 {[%emt 0:00:14]} a3 {[%emt 0:00:10]} 54. Ke4 {[%emt 0:00:23]} a2 {[%emt 0:00:14]} 55. h4 {[%emt 0:00:12]} f6 {[%emt 0:00:32]} 56. Ke3 {[%emt 0:01:19]} f5 {[%emt 0:00:19]} 0-1

[Event "Torneo Interdepartamental 2019"]
[Site "Montevideo"]
[Date "2019.08.23"]
[Round "1.10"]
[White "Chargonia, Alfredo"]
[Black "Daneri, Martin"]
[Result "*"]
[WhiteElo "1572"]
[BlackElo "2050"]
[Annotator "NA RC"]
[PlyCount "27"]
[EventDate "2019.08.23"]
[EventType "team-tourn"]
[EventCountry "URU"]
[SourceTitle "playchess.com"]
[Source "ChessBase"]
[SourceQuality "1"]
[TimeControl "5400+30"]

1. Nf3 {[%emt 0:00:00]} d5 {[%emt 0:00:00]} 2. d4 {[%emt 0:00:00]} Nf6 {[%emt 0:00:41]} 3. c4 {[%emt 0:00:11]} c6 {[%emt 0:00:48]} 4. Nc3 {[%emt 0:00:36]} e6 {[%emt 0:00:29]} 5. Bg5 {[%emt 0:00:42]} Be7 {[%emt 0:00:29]} 6. e3 {[%emt 0:00:10]} Nbd7 {[%emt 0:01:01]} 7. Bd3 {[%emt 0:00:16]} h6 {[%emt 0:00:36]} 8. Bh4 {[%emt 0:00:10]} O-O {[%emt 0:03:44]} 9. O-O {[%emt 0:00:27]} c5 {[%emt 0:08:07]} 10. Qe2 {[%emt 0:05:05]} cxd4 {[%emt 0:05:39]} 11. exd4 {[%emt 0:01:14]} dxc4 {[%emt 0:05:27]} 12. Bxc4 {[%emt 0:00:13]} Nb6 {[%emt 0:00:07]} 13. Bd3 {[%emt 0:01:20]} Nbd5 {[%emt 0:00:12]} 14. Nxd5 {[%emt 0:02:58]} *

[Event "Torneo Interdepartamental 2019"]
[Site "Montevideo"]
[Date "2019.08.23"]
[Round "1.11"]
[White "Lanzilotta, Marcelo"]
[Black "Pereira, Gerardo"]
[Result "*"]
[WhiteElo "1970"]
[BlackElo "1331"]
[Annotator "NA RC"]
[PlyCount "28"]
[EventDate "2019.08.23"]
[EventType "team-tourn"]
[EventCountry "URU"]
[SourceTitle "playchess.com"]
[Source "ChessBase"]
[SourceQuality "1"]
[TimeControl "5400+30"]

1. e4 {[%emt 0:00:00]} d6 {[%emt 0:00:00]} 2. d4 {[%emt 0:00:00]} Nf6 {[%emt 0:00:00]} 3. Nc3 {[%emt 0:00:00]} Nbd7 {[%emt 0:00:34]} 4. Bc4 {[%emt 0:00:00]} e5 {[%emt 0:00:27]} 5. Nf3 {[%emt 0:00:21]} Be7 {[%emt 0:00:56]} 6. O-O {[%emt 0:00:14]} h6 {[%emt 0:00:33]} 7. Re1 {[%emt 0:00:30]} c6 {[%emt 0:00:36]} 8. a4 {[%emt 0:00:20]} Qc7 {[%emt 0:00:50]} 9. Qe2 {[%emt 0:00:45]} g5 {[%emt 0:01:35]} 10. Bb3 {[%emt 0:03:38]} Nf8 {[%emt 0:03:10]} 11. Qc4 {[%emt 0:05:37]} Be6 {[%emt 0:05:31]} 12. d5 {[%emt 0:02:47]} Bd7 {[%emt 0:02:48]} 13. dxc6 {[%emt 0:02:09]} Be6 {[%emt 0:04:26]} 14. cxb7 {[%emt 0:02:39]} Qxb7 {[%emt 0:01:13]} *

[Event "Torneo Interdepartamental 2019"]
[Site "Montevideo"]
[Date "2019.08.24"]
[Round "1.11"]
[White "Malan, Lucia"]
[Black "Blanco, Rudemar Ernesto"]
[Result "1-0"]
[ECO "B07"]
[WhiteElo "1831"]
[BlackElo "1516"]
[Annotator "NA"]
[PlyCount "63"]
[EventDate "2019.08.23"]
[EventType "team-tourn"]
[EventCountry "URU"]
[SourceTitle "playchess.com"]
[Source "ChessBase"]
[SourceQuality "1"]
[TimeControl "5400+30"]

1. e4 {[%emt 0:00:00]} d6 {[%emt 0:00:00]} 2. d4 {[%emt 0:00:00]} Nf6 {[%emt 0:00:00]} 3. Nc3 {[%emt 0:00:00]} Nbd7 {[%emt 0:00:34]} 4. Bc4 {[%emt 0:00:00]} e5 {[%emt 0:00:27]} 5. Nf3 {[%emt 0:00:21]} Be7 {[%emt 0:00:56]} 6. O-O {[%emt 0:00:14]} h6 {[%emt 0:00:33]} 7. Re1 {[%emt 0:00:30]} c6 {[%emt 0:00:36]} 8. a4 {[%emt 0:00:20]} Qc7 {[%emt 0:00:50]} 9. Qe2 {[%emt 0:00:45]} g5 {[%emt 0:01:35]} 10. Bb3 {[%emt 0:03:38]} Nf8 {[%emt 0:03:10]} 11. Qc4 {[%emt 0:05:37]} Be6 {[%emt 0:05:31]} 12. d5 {[%emt 0:02:47]} Bd7 {[%emt 0:02:48]} 13. dxc6 {[%emt 0:02:09]} Be6 {[%emt 0:04:26]} 14. cxb7 {[%emt 0:02:39]} Qxb7 {[%emt 0:01:13]} 15. Qb5+ {[%emt 0:02:36]} Qxb5 {[%emt 0:03:56]} 16. Nxb5 {[%emt 0:00:06]} Kd7 {[%emt 0:00:22]} 17. Be3 {[%emt 0:04:02]} a6 {[%emt 0:03:25]} 18. Nc3 {[%emt 0:00:28]} Bxb3 {[%emt 0:00:48]} 19. cxb3 {[%emt 0:00:06]} Rb8 {[%emt 0:03:21]} 20. Nd2 {[%emt 0:04:07]} Ne6 {[%emt 0:03:26]} 21. Red1 {[%emt 0:04:09]} Rhd8 {[%emt 0:08:55]} 22. Nc4 {[%emt 0:05:50]} Ke8 {[%emt 0:05:43]} 23. Bb6 {[%emt 0:06:43]} Rd7 {[%emt 0:04:25]} 24. a5 {[%emt 0:02:19]} Nd4 {[%emt 0:06:00]} 25. Bxd4 {[%emt 0:03:03]} exd4 {[%emt 0:00:12]} 26. Rxd4 {[%emt 0:00:29]} Kf8 {[%emt 0:05:29]} 27. Nb6 {[%emt 0:01:25]} Rdd8 {[%emt 0:02:17]} 28. Rad1 {[%emt 0:01:11]} Kg8 {[%emt 0:03:24]} 29. b4 {[%emt 0:02:46]} Nd7 {[%emt 0:04:23]} 30. Ncd5 {[%emt 0:00:48]} Bf8 {[%emt 0:00:31]} 31. Nxd7 {[%emt 0:00:07]} Rxd7 {[%emt 0:00:36]} 32. Nf6+ {[%emt 0:00:09]} 1-0